Cogmind - Beta 14 @@@ ROGUE MODE // 2024.11.14 @ 20:04:23 Player: OctagonalPrism Result: Destroyed by Y-64 Sentinel with KE Penetrator Performance ------------- Evolutions (6) 3000 Regions Visited (18) 3600 Robots Destroyed (93) 465 Value Destroyed (2402) 2402 Prototype IDs (50) 1000 Alien Tech Used (0) 0 Bonus (754) 754 TOTAL SCORE: 11221 Bonus ------- High Alert Combat Kills 81 Follower Combat Kills 73 Aligned with FarCom 300 Met Data Miner 300 Cogmind --------- Core Integrity 0/1150 Matter 257/300 Energy 57/100 System Corruption 11% Temperature Cool (9) Movement Core (50) Location -4/Extension Parts ------- > --- POWER (1) -------- (None) > --- PROPULSION (4) --- (None) > --- UTILITY (12) ----- Hacking Suite Improved Hacking Suite Authchip [Propulsion] > --- WEAPON (2) ------- Plasma Lance > --- INVENTORY (5) ---- Medium Storage Unit Improved Signal Interpreter Advanced Terrain Scan Processor Ripper Peak State ------------ > --- POWER ------------ Improved Deuterium Engine > --- PROPULSION ------- Flying Fortress v7 > --- UTILITY ---------- Medium Storage Unit Long-range Terrain Scanner Advanced Terrain Scan Processor Light Regenerative Plating Hacking Suite Hacking Suite Improved Hacking Suite Improved Hacking Suite System Shield Advanced System Shield Authchip [Propulsion] > --- WEAPON ----------- Plasma Lance > --- INVENTORY -------- Nuclear Pulse Array Small Storage Unit Advanced Sensor Array Improved Signal Interpreter Long-range Terrain Scanner Advanced Terrain Scan Processor Improved Remote Shield Advanced System Restoration Module Railgun [Rating: 96] Favorites ----------- Power Improved Deuterium Engine Engine Improved Deuterium Engine Power Core Light Nuclear Core Propulsion Flying Fortress v7 Treads Light Treads Leg Flexi-carbon Leg Wheel Wheel Flight Unit Flying Fortress v7 Utility Hacking Suite Device Long-range Terrain Scanner Storage Medium Storage Unit Processor Advanced Terrain Scan Processor Hackware Hacking Suite Protection Light Regenerative Plating Weapon Chainsword Energy Gun EM Pulse Gun Ballistic Gun Improved Assault Rifle Impact Weapon Flail Slashing Weapon Chainsword Piercing Weapon Plasma Lance Build | -11 -10 -10 -9 -9 -9 -8 -8 -7 -7 -7 -7 -7 -7 -6 -6 -5 -4 -4 ------- Run | Yrd Mat Min Mat Min Exi Min Mat Fac Was Fac Low Low Dat Pro Fac Fac Fac Ext Slots Evolved 12 | . . . 2 . . . 2 2 . . . . . . 2 2 2 . Power . | . . . . . . . . . . . . . . . . . . . Propulsion 2 | . . . . . . . 2 . . . . . . . . . . . Utility 10 | . . . 2 . . . . 2 . . . . . . 2 2 2 . Weapon . | . . . . . . . . . . . . . . . . . . . Parts Attached 104 | 7 10 . 24 2 . . 7 6 . 8 3 . . 2 3 8 14 10 Power 12 | 1 1 . 4 . . . . 1 . 1 . . . . . . 3 1 Engine 10 | 1 . . 4 . . . . 1 . 1 . . . . . . 3 . Core 2 | . 1 . . . . . . . . . . . . . . . . 1 Reactor . | . . . . . . . . . . . . . . . . . . . Propulsion 17 | 2 2 . 7 1 . . 1 . . . . . . . . . 1 3 Treads 8 | 1 1 . 5 . . . . . . . . . . . . . . 1 Leg 2 | . . . . . . . . . . . . . . . . . . 2 Wheel 5 | 1 1 . 2 1 . . . . . . . . . . . . . . Hover . | . . . . . . . . . . . . . . . . . . . Flight 2 | . . . . . . . 1 . . . . . . . . . 1 . Utility 50 | 2 2 . 8 . . . 3 3 . 7 3 . . . 3 6 8 5 Device 18 | 1 1 . 1 . . . 1 . . 4 2 . . . . 1 4 3 Storage 4 | 1 . . 2 . . . . . . . . . . . . . . 1 Processor 8 | . 1 . 3 . . . . . . 2 1 . . . 1 . . . Hackware 17 | . . . 1 . . . 2 3 . 1 . . . . 2 5 3 . Protection 3 | . . . 1 . . . . . . . . . . . . . 1 1 Artifact . | . . . . . . . . . . . . . . . . . . . Weapon 25 | 2 5 . 5 1 . . 3 2 . . . . . 2 . 2 2 1 Energy Gun 1 | 1 . . . . . . . . . . . . . . . . . . Energy Cannon . | . . . . . . . . . . . . . . . . . . . Ballistic Gun 12 | 1 5 . 4 1 . . . . . . . . . . . . 1 . Ballistic Cannon . | . . . . . . . . . . . . . . . . . . . Launcher . | . . . . . . . . . . . . . . . . . . . Special Weapon . | . . . . . . . . . . . . . . . . . . . Impact Weapon 3 | . . . 1 . . . 2 . . . . . . . . . . . Slashing Weapon 7 | . . . . . . . 1 2 . . . . . 2 . 2 . . Piercing Weapon 2 | . . . . . . . . . . . . . . . . . 1 1 Special Melee Weapon . | . . . . . . . . . . . . . . . . . . . Unidentified Prototypes 3 | . . . 2 . . . . . . . . . . . . . 1 . Corrupted Parts 1 | . . . . . . . . . . . . . . . . . . 1 System Corruption 3 | . . . . . . . . . . . . . . . . . . 3 Parts Lost 34 | . 3 . 6 1 . . . . . . . . . . . 3 7 14 Power 5 | . 1 . 1 . . . . . . . . . . . . . 2 1 Propulsion 7 | . . . 2 . . . . . . . . . . . . . 1 4 Utility 15 | . . . 3 . . . . . . . . . . . . 1 2 9 Weapon 7 | . 2 . . 1 . . . . . . . . . . . 2 2 . Highest Loss Streak 10 | . 3 . 2 1 . . . . . . . . . . . 3 5 10 To Critical Strikes . | . . . . . . . . . . . . . . . . . . . Average Slot Usage (%) 81 | . 95 100 95 100 100 100 72 69 76 72 76 76 76 61 66 72 67 51 Engine 7 | . 3 . 9 11 11 11 9 7 7 7 7 7 7 7 6 5 4 . Core 1 | . 9 14 . . . . . . . . . . . . . . . . Treads 5 | . 14 14 10 11 11 11 . . . . . . . . . . . . Wheel 4 | . 14 14 10 11 11 11 . . . . . . . . . . . . Flight 3 | . . . . . . . 9 7 7 7 7 7 7 7 6 5 5 . Device 5 | . 6 . 3 . . . 2 7 7 5 14 15 15 15 6 6 5 5 Storage 8 | . 14 14 11 11 11 11 9 7 7 7 7 7 7 7 6 5 5 5 Processor 12 | . 3 14 20 33 33 33 11 . . 3 7 7 7 7 11 6 5 5 Hackware 13 | . . . 4 . . . 12 26 30 24 15 15 15 15 14 28 34 21 Ballistic Gun 9 | . 24 28 21 22 22 22 9 . . . . . . . . . . . Slashing Weapon 5 | . . . . . . . 7 12 15 15 15 15 15 . 13 10 3 . Peak Build Rating 96 | 9 12 11 20 19 21 21 50 62 62 67 67 67 67 67 74 88 96 68 Average Rating 45 | 5 9 11 17 18 19 21 48 57 62 64 66 67 67 60 68 80 84 48 On Entrance 43 | . 9 11 11 19 19 21 21 50 62 62 67 67 67 67 67 74 82 49 Naked Turns . | . . . . . . . . . . . . . . . . . . . Heaviest Build 36 | 12 15 14 25 23 23 23 24 26 26 29 29 29 29 29 28 29 29 36 Greatest Support 50 | 20 20 20 20 20 16 16 50 50 50 50 50 50 50 50 50 50 50 40 Greatest Overweight (x) 2 | 1 1 . 2 2 1 1 . . . . . . . . . . 1 2 Average Overweight (x) . | . . . 1 1 1 1 . . . . . . . . . . . . Largest Inventory Capacity 10 | 8 8 8 10 10 10 10 10 10 10 10 10 10 10 10 10 10 10 10 Average Capacity 9 | 7 8 8 9 10 10 10 10 10 10 10 10 10 10 10 10 10 10 8 Most Carried 10 | 5 8 7 10 10 9 9 10 8 9 10 8 6 6 8 9 9 10 8 Average Carried 7 | 2 6 7 8 9 8 9 3 6 8 8 6 6 6 7 8 8 9 5 Final Capacity 10 | 8 8 8 10 10 10 10 10 10 10 10 10 10 10 10 10 10 10 5 Final Carried 10 | 4 7 7 10 9 9 9 3 8 9 8 6 6 6 6 9 9 8 4 Class Distribution -------------------- 39% | Hacker-Scout 33% | Mutant 11% | Wizard-Scout 10% | Scavenger-Mutant Dominant Class ---------------- Mutant | -10/Materials Mutant | -10/Mines Mutant | -9/Materials Mutant | -9/Mines Mutant | -9/Exiles Mutant | -8/Mines Mutant | -8/Materials Hacker-Scout | -7/Factory Hacker-Scout | -7/Waste Hacker-Scout | -7/Factory Hacker-Scout | -7/Lower Caves Hacker-Scout | -7/Lower Caves Hacker-Scout | -7/Data Miner Hacker-Scout | -6/Proximity Caves Hacker-Scout | -6/Factory Hacker-Scout | -5/Factory Wizard-Scout | -4/Factory Hacker-Assassin | -4/Extension Resources | -11 -10 -10 -9 -9 -9 -8 -8 -7 -7 -7 -7 -7 -7 -6 -6 -5 -4 -4 ----------- Run | Yrd Mat Min Mat Min Exi Min Mat Fac Was Fac Low Low Dat Pro Fac Fac Fac Ext Matter Collected 2292 | 276 257 60 978 85 . . . 146 . . 43 63 . 13 30 . 79 262 Remotely . | . . . . . . . . . . . . . . . . . . . Salvage Created 3710 | 114 554 71 1995 243 . . . 109 . . . . . . 71 . 89 464 Parts 243 | 9 40 8 132 11 . . . 16 . . . . . . 7 . 3 17 Haulers Intercepted 6 | . 2 . 4 . . . . . . . . . . . . . . . Recyclers Shooed 6 | . . . 5 . . . . . . . . . . . . . . 1 Parts Field Recycled . | . . . . . . . . . . . . . . . . . . . Retrieved Matter . | . . . . . . . . . . . . . . . . . . . Parts Self-Destructed . | . . . . . . . . . . . . . . . . . . . Prevented . | . . . . . . . . . . . . . . . . . . . Kills | -11 -10 -10 -9 -9 -9 -8 -8 -7 -7 -7 -7 -7 -7 -6 -6 -5 -4 -4 ------- Run | Yrd Mat Min Mat Min Exi Min Mat Fac Was Fac Low Low Dat Pro Fac Fac Fac Ext Combat Hostiles Destroyed 63 | . 12 3 32 5 . . . 1 . . . . . . 2 . 2 6 Melee 10 | . . . . . . . . 1 . . . . . . 2 . 1 6 Guns 52 | . 11 3 32 5 . . . . . . . . . . . . 1 . AOE 1 | . 1 . . . . . . . . . . . . . . . . . Classes Destroyed 12 | 2 6 1 1 1 . . . 1 . . . . . . . . . . Worker 2 | . 1 . 1 . . . . . . . . . . . . . . . Builder 4 | . . 1 2 . . . . 1 . . . . . . . . . . Tunneler 3 | 2 . . 1 . . . . . . . . . . . . . . . Hauler 6 | . 2 . 4 . . . . . . . . . . . . . . . Recycler 4 | 1 . . 2 1 . . . . . . . . . . . . . . Operator 4 | . 1 . 3 . . . . . . . . . . . . . . . Watcher 7 | . 1 . 4 . . . . 1 . . . . . . 1 . . . Swarmer 21 | . 5 3 7 3 . . . . . . . . . . 2 . 1 . Grunt 28 | . 7 . 16 1 . . . . . . . . . . . . . 4 Brawler 1 | . . . . 1 . . . . . . . . . . . . . . Sentry 11 | . . . 9 . . . . . . . . . . . . . . 2 Programmer 2 | . . . . . . . . 1 . . . . . . . . 1 . Best Kill Streak 7 | 2 5 4 7 3 . . . 2 . . . . . . 1 . 1 3 Combat Bots Only 7 | . 3 3 7 3 . . . 1 . . . . . . 1 . 1 3 Max Kills in Single Turn 2 | 1 2 1 2 1 . . . 1 . . . . . . 1 . 1 1 Gunslinging 1 | . . . 1 . . . . . . . . . . . . . . . Exploded 1 | . 1 . . . . . . . . . . . . . . . . . Melee 1 | . . . . . . . . 1 . . . . . . 1 . 1 1 Uniques/NPCs Destroyed . | . . . . . . . . . . . . . . . . . . . Combat | -11 -10 -10 -9 -9 -9 -8 -8 -7 -7 -7 -7 -7 -7 -6 -6 -5 -4 -4 -------- Run | Yrd Mat Min Mat Min Exi Min Mat Fac Was Fac Low Low Dat Pro Fac Fac Fac Ext Hostile Shots Fired 561 | . 76 10 151 15 . 5 13 19 . . 1 . . . 30 26 84 131 Missed 185 | . 22 5 44 2 . 2 7 8 . . 1 . . . 14 12 34 34 Damage Taken 6444 | . 635 43 1357 111 . 49 34 134 . . . . . . 239 576 1251 2015 Core 1671 | . 151 . 230 14 . . . 5 . . . . . . 43 78 310 840 Absorbed by Shields 15 | . . . . . . . . . . . . . . . . . . 15 Regen/Repaired (Parts) 217 | . 133 . . . . . . . . . . . . . . . 21 63 Core Remaining (%) 80 | 100 . 39 . . . 39 100 . . . . . . 99 94 92 . . Volleys Fired 256 | 6 81 9 128 12 . . 2 . . . . . . . . . 18 . Largest 2 | 2 2 2 2 2 . . 1 . . . . . . . . . 1 . Hottest 60 | 60 60 40 46 46 . . 23 . . . . . . . . . 35 . Shots Fired 491 | 12 161 18 256 24 . . 2 . . . . . . . . . 18 . Gun 491 | 12 161 18 256 24 . . 2 . . . . . . . . . 18 . Cannon . | . . . . . . . . . . . . . . . . . . . Launcher . | . . . . . . . . . . . . . . . . . . . Special . | . . . . . . . . . . . . . . . . . . . Kinetic 458 | 6 134 18 256 24 . . 2 . . . . . . . . . 18 . Thermal . | . . . . . . . . . . . . . . . . . . . Explosive . | . . . . . . . . . . . . . . . . . . . Electromagnetic 33 | 6 27 . . . . . . . . . . . . . . . . . Robot Hit Streak 20 | 7 7 4 20 12 . . 4 . . . . . . . . . 5 . Robot Miss Streak 9 | 1 9 3 7 1 . . . . . . . . . . . . 2 . Penetration Max . | . . . . . . . . . . . . . . . . . . . Secondary Targets 7 | . 1 . 5 1 . . . . . . . . . . . . . . Max Gunslinging Chain 1 | . 1 . 1 1 . . . . . . . . . . . . . . Shots Hit Robots 374 | 10 89 9 183 19 . . 2 5 . . . . . . 5 3 16 33 Core Hits 149 | 5 32 5 76 7 . . . 3 . . . . . . 3 . 4 14 Critical Kills 2 | . . . 2 . . . . . . . . . . . . . . . Critical Parts Destroyed 2 | . 1 . 1 . . . . . . . . . . . . . . . Critical Strikes 8 | . 2 . 3 . . . . . . . . . . . . . . 3 Destroy 4 | . 1 . 3 . . . . . . . . . . . . . . . Corrupt 1 | . 1 . . . . . . . . . . . . . . . . . Impale 3 | . . . . . . . . . . . . . . . . . . 3 Melee Attacks 192 | . . . 4 . . . 14 33 . 3 5 2 . . 32 25 28 46 Impact 4 | . . . 4 . . . . . . . . . . . . . . . Slashing 134 | . . . . . . . 14 33 . 3 5 2 . . 32 25 20 . Piercing 54 | . . . . . . . . . . . . . . . . . 8 46 Sneak Attacks 3 | . . . . . . . . 1 . . . . . . 1 . . 1 Combat Hostiles . | . . . . . . . . . . . . . . . . . . . Follow-up Attacks 2 | . . . . . . . . . . . . . . . 1 1 . . Damage Inflicted 6727 | 110 968 114 2677 296 . . 32 233 . . . . . . 205 92 527 1473 Guns 4506 | 110 854 114 2677 296 . . 32 . . . . . . . . . 423 . Cannons . | . . . . . . . . . . . . . . . . . . . Explosions 114 | . 114 . . . . . . . . . . . . . . . . . Melee 2107 | . . . . . . . . 233 . . . . . . 205 92 104 1473 Ramming . | . . . . . . . . . . . . . . . . . . . Kinetic 4222 | 45 635 114 2677 296 . . 32 . . . . . . . . . 423 . Thermal 114 | . 114 . . . . . . . . . . . . . . . . . Explosive . | . . . . . . . . . . . . . . . . . . . Electromagnetic 284 | 65 219 . . . . . . . . . . . . . . . . . Impact . | . . . . . . . . . . . . . . . . . . . Slashing 634 | . . . . . . . . 233 . . . . . . 205 92 104 . Piercing 1473 | . . . . . . . . . . . . . . . . . . 1473 Highest Corruption 12 | . . . . . . . . 3 3 3 . . . . . 7 8 12 Average Corruption 5 | . . . . . . . . 2 3 2 . . . . . 5 5 10 Corruption Purged 13 | . . . . . . . . . . 3 . . . . . 8 . 2 Corruption Blocked . | . . . . . . . . . . . . . . . . . . . Effects 30 | . . . . . . . . 1 3 3 . . . . . 8 2 13 Message Errors 7 | . . . . . . . . . 1 1 . . . . . 2 . 3 Matter Fused 11 | . . . . . . . . 1 1 . . . . . . 2 1 6 Heat Flow Errors 2 | . . . . . . . . . . . . . . . . 1 1 . Energy Discharges 4 | . . . . . . . . . 1 1 . . . . . 1 . 1 Data Loss (minor) 4 | . . . . . . . . . . . . . . . . 2 . 2 Data Loss (major) 1 | . . . . . . . . . . 1 . . . . . . . . Alerts 1 | . . . . . . . . . . . . . . . . . . 1 Overload Shots . | . . . . . . . . . . . . . . . . . . . Overflow Damage 74 | . . . . . . . . . . . . . . . 10 . . 64 Projectiles . | . . . . . . . . . . . . . . . . . . . Explosions . | . . . . . . . . . . . . . . . . . . . Melee 74 | . . . . . . . . . . . . . . . 10 . . 64 Knockbacks . | . . . . . . . . . . . . . . . . . . . Impact . | . . . . . . . . . . . . . . . . . . . Kinetic . | . . . . . . . . . . . . . . . . . . . Secondary . | . . . . . . . . . . . . . . . . . . . Self-Inflicted Damage 35 | . 35 . . . . . . . . . . . . . . . . . Shots 1 | . 1 . . . . . . . . . . . . . . . . . Rammed . | . . . . . . . . . . . . . . . . . . . Targets Rammed . | . . . . . . . . . . . . . . . . . . . Kicked . | . . . . . . . . . . . . . . . . . . . Crushed . | . . . . . . . . . . . . . . . . . . . Highest Temperature 212 | 20 71 . 25 . . . 4 . . . . . . . . 212 200 15 Average Temperature 21 | 15 16 . 6 . . . 4 . . . . . . . . 114 119 15 Received Heat Transfer 1574 | . 306 . 606 12 . 27 . 6 . . . . . . 12 18 . 587 Effects 3 | . . . . . . . . . . . . . . . . . 3 . Interference 3 | . . . . . . . . . . . . . . . . . 3 . Siege Activations . | . . . . . . . . . . . . . . . . . . . Robots Corrupted . | . . . . . . . . . . . . . . . . . . . Combat Hostiles . | . . . . . . . . . . . . . . . . . . . Parts Fried 1 | . 1 . . . . . . . . . . . . . . . . . Impact Corruptions . | . . . . . . . . . . . . . . . . . . . Robots Melted . | . . . . . . . . . . . . . . . . . . . Combat Hostiles . | . . . . . . . . . . . . . . . . . . . Parts Melted 2 | . . . . . . . . . . . . . . . . . . 2 Heat Transferred 200 | . 200 . . . . . . . . . . . . . . . . . Parts Sabotaged . | . . . . . . . . . . . . . . . . . . . Parts Stolen . | . . . . . . . . . . . . . . . . . . . Parts Stripped . | . . . . . . . . . . . . . . . . . . . Power Chain Reactions 3 | . 3 . . . . . . . . . . . . . . . . . Alert | -11 -10 -10 -9 -9 -9 -8 -8 -7 -7 -7 -7 -7 -7 -6 -6 -5 -4 -4 ------- Run | Yrd Mat Min Mat Min Exi Min Mat Fac Was Fac Low Low Dat Pro Fac Fac Fac Ext Peak Influence 483 | 15 375 159 483 259 . 45 236 114 41 39 . . . . 227 108 160 90 Initial 181 | . 9 84 61 181 . . 17 107 26 28 . . . . . 39 52 . Average 135 | 4 186 104 326 115 . 38 77 54 39 28 . . . . 81 48 40 22 Maximum Alert Level 2 | . 1 . 2 1 . . 1 . . . . . . . 1 . . . Low Security (%) 71 | 100 35 100 17 90 . 100 95 100 100 100 . . . . 84 100 100 100 Level 1 21 | . 64 . 48 9 . . 4 . . . . . . . 15 . . . Level 2 7 | . . . 33 . . . . . . . . . . . . . . . Level 3 . | . . . . . . . . . . . . . . . . . . . Level 4 . | . . . . . . . . . . . . . . . . . . . Level 5 . | . . . . . . . . . . . . . . . . . . . High Security . | . . . . . . . . . . . . . . . . . . . Max Security . | . . . . . . . . . . . . . . . . . . . Squads Dispatched 30 | . 2 . 5 . . . 1 4 . 3 . . . . 3 4 7 1 Investigation 20 | . 1 . 3 . . . 1 3 . 3 . . . . 3 3 3 . Extermination 2 | . . . . . . . . . . . . . . . . . 2 . Reinforcement 8 | . 1 . 2 . . . . 1 . . . . . . . 1 2 1 Assault . | . . . . . . . . . . . . . . . . . . . Garrison . | . . . . . . . . . . . . . . . . . . . Intercept . | . . . . . . . . . . . . . . . . . . . Searches Triggered . | . . . . . . . . . . . . . . . . . . . Data Miner Redirects 2 | . . . . . . . . . . . . . . . . 1 1 . Construction Impeded . | . . . . . . . . . . . . . . . . . . . Haulers Reinforced . | . . . . . . . . . . . . . . . . . . . Active Scanning Responses . | . . . . . . . . . . . . . . . . . . . Cargo Convoy Interrupts . | . . . . . . . . . . . . . . . . . . . Stealth | -11 -10 -10 -9 -9 -9 -8 -8 -7 -7 -7 -7 -7 -7 -6 -6 -5 -4 -4 --------- Run | Yrd Mat Min Mat Min Exi Min Mat Fac Was Fac Low Low Dat Pro Fac Fac Fac Ext Distress Signals 9 | . 1 . 1 . . . 1 . . . . . . . 1 . 4 1 Communications Jammed . | . . . . . . . . . . . . . . . . . . . Distress Signals . | . . . . . . . . . . . . . . . . . . . Times Spotted 173 | . 26 3 55 6 . 3 13 5 6 . 5 . . 5 10 8 16 12 Peak Tracking Total 10 | . 5 3 8 3 . 3 10 3 6 . 5 . . 2 5 5 7 7 Tactical Retreats 24 | . 3 . 3 . . 1 3 1 . . 1 . . . 3 3 4 2 Traps | -11 -10 -10 -9 -9 -9 -8 -8 -7 -7 -7 -7 -7 -7 -6 -6 -5 -4 -4 ------- Run | Yrd Mat Min Mat Min Exi Min Mat Fac Was Fac Low Low Dat Pro Fac Fac Fac Ext Traps Triggered 9 | . 1 . 1 . . . . 2 . . . . . . 1 1 2 1 Indirectly . | . . . . . . . . . . . . . . . . . . . Trap Hack Attempts . | . . . . . . . . . . . . . . . . . . . Triggered . | . . . . . . . . . . . . . . . . . . . Disarmed 13 | . . . 12 . . . . . . . . . . . . . 1 . Reprogrammed 4 | . . . . . . . . . . . . . . . . . . 4 Reused 2 | . . . . . . . . . . . . . . . . . . 2 Traps Extracted . | . . . . . . . . . . . . . . . . . . . Installed . | . . . . . . . . . . . . . . . . . . . Triggered 2 | . . . . . . . . . . . . . . . . . . 2 Machines | -11 -10 -10 -9 -9 -9 -8 -8 -7 -7 -7 -7 -7 -7 -6 -6 -5 -4 -4 ---------- Run | Yrd Mat Min Mat Min Exi Min Mat Fac Was Fac Low Low Dat Pro Fac Fac Fac Ext Machines Disabled 5 | . 2 . 2 . . . . . . . . . . . . . 1 . Max in Single Turn 1 | . 1 . 1 . . . . . . . . . . . . . 1 . Garrison Access 6 | . . . . . . . . 1 . 1 . . . . 2 1 1 . Machines Repaired . | . . . . . . . . . . . . . . . . . . . Machines Dismantled . | . . . . . . . . . . . . . . . . . . . Machines Sabotaged . | . . . . . . . . . . . . . . . . . . . Overloaded Fab Kills . | . . . . . . . . . . . . . . . . . . . Hacking | -11 -10 -10 -9 -9 -9 -8 -8 -7 -7 -7 -7 -7 -7 -6 -6 -5 -4 -4 --------- Run | Yrd Mat Min Mat Min Exi Min Mat Fac Was Fac Low Low Dat Pro Fac Fac Fac Ext Machines Accessed 78 | . 8 . 9 . 2 . 6 8 . 4 1 1 3 . 13 9 11 3 Terminals 45 | . 6 . 8 . . . 5 4 . 2 . . . . 7 5 5 3 Fabricators 11 | . . . . . . . . 2 . 1 . . . . 2 3 3 . Repair Stations 2 | . 1 . . . . . . . . . . . . . . . 1 . Recycling Units 3 | . 1 . . . . . . 1 . . . . . . 1 . . . Scanalyzers 3 | . . . 1 . . . . . . . . . . . 1 . 1 . Garrison Access 7 | . . . . . . . 1 1 . 1 . . . . 2 1 1 . Total Hacks 318 | . 24 . 40 . 5 . 21 22 . 18 1 1 23 . 43 39 66 15 Successful 221 | . 14 . 22 . 5 . 13 10 . 10 1 1 23 . 28 26 58 10 Failed 93 | . 10 . 17 . . . 8 12 . 8 . . . . 14 12 7 5 Catastrophic 9 | . . . . . . . 1 3 . 2 . . . . 2 1 . . Database Lockouts 4 | . . . 1 . . . . . . . . . . . 1 1 1 . Manual 139 | . 17 . 23 . 1 . 14 5 . 9 . . . . 14 19 28 9 Terminals 183 | . 18 . 34 . . . 18 8 . 7 . . . . 22 24 37 15 Fabricators 56 | . . . . . . . . 10 . 8 . . . . 8 13 17 . Repair Stations 7 | . 3 . . . . . . . . . . . . . . . 4 . Recycling Units 7 | . 3 . . . . . . 2 . . . . . . 2 . . . Scanalyzers 21 | . . . 6 . . . . . . . . . . . 8 . 7 . Garrison Access 14 | . . . . . . . 3 2 . 3 . . . . 3 2 1 . Terminal Hacks 111 | . 5 . 13 . 5 . 9 2 . 1 1 1 23 . 8 9 28 6 Record 16 | . . . . . 4 . 1 . . . . . 6 . 1 1 3 . Part Schematic 17 | . . . . . . . 2 . . . . . 10 . 1 1 2 1 Robot Schematic 4 | . . . . . . . . . . . . . 4 . . . . . Robot Analysis 5 | . 1 . 4 . . . . . . . . . . . . . . . Prototype ID Bank 9 | . . . . . . . 1 . . 1 . . 3 . . 1 3 . Open Door 2 | . . . . . . . . . . . 1 1 . . . . . . Level Access Points 3 | . . . . . . . 1 . . . . . . . 1 . 1 . Branch Access Points 3 | . . . . . . . . . . . . . . . 1 1 1 . Emergency Access Points 3 | . . . . . . . . . . . . . . . . 1 2 . Terminal Index 7 | . . . 1 . . . 1 1 . . . . . . 1 1 1 1 Recycling Unit Index 1 | . . . . . . . . . . . . . . . . . 1 . Scanalyzer Index 1 | . . . . . . . . . . . . . . . . . 1 . Garrison Index 3 | . . . . . . . . . . . . . . . 1 1 1 . Alert Level 6 | . 1 . 1 . . . . . . . . . . . 1 . 2 1 Unreport Threat 2 | . . . 1 . . . . . . . . . . . . . 1 . Locate Traps 9 | . 1 . 1 . . . 2 . . . . . . . 1 1 2 1 Disarm Traps 3 | . . . 2 . . . . . . . . . . . . . 1 . Reprogram Traps 1 | . . . . . . . . . . . . . . . . . . 1 Recall Reinforcements 1 | . . . . . . . . . . . . . . . . . 1 . Hauler Manifests 1 | . . . 1 . . . . . . . . . . . . . . . Registered Components 1 | . . . . . . . . . . . . . . . . . 1 . Registered Prototypes 1 | . . . . . . . . . . . . . . . . . 1 . Zone Layout 11 | . 2 . 2 . . . 1 1 . . . . . . . 1 3 1 Derelict Proto ID Bank 1 | . . . . . 1 . . . . . . . . . . . . . Fabricator Hacks 35 | . . . . . . . . 5 . 5 . . . . 5 10 10 . Network Status 7 | . . . . . . . . 1 . 1 . . . . 2 1 2 . Load Schematic 19 | . . . . . . . . 3 . 2 . . . . 2 6 6 . Build 9 | . . . . . . . . 1 . 2 . . . . 1 3 2 . Repair Station Hacks 6 | . 2 . . . . . . . . . . . . . . . 4 . Scan Component 3 | . 1 . . . . . . . . . . . . . . . 2 . Repair 3 | . 1 . . . . . . . . . . . . . . . 2 . Recycling Unit Hacks 2 | . 1 . . . . . . . . . . . . . 1 . . . Report Inventory 2 | . 1 . . . . . . . . . . . . . 1 . . . Scanalyzer 18 | . . . 4 . . . . . . . . . . . 7 . 7 . Insert Component 9 | . . . 3 . . . . . . . . . . . 3 . 3 . Analyze 9 | . . . 1 . . . . . . . . . . . 4 . 4 . Garrison Access Hacks 6 | . . . . . . . . 1 . 1 . . . . 2 1 1 . Seal Access 6 | . . . . . . . . 1 . 1 . . . . 2 1 1 . Unauthorized Hacks 43 | . 6 . 5 . . . 4 2 . 3 . . . . 5 6 8 4 Terminals 31 | . 5 . 5 . . . 4 . . 1 . . . . 3 5 4 4 Assimilate 2 | . . . 1 . . . . . . . . . . . . 1 . . Botnet 21 | . 3 . 3 . . . 3 . . 1 . . . . 3 3 3 2 Disrupt 1 | . . . . . . . . . . . . . . . . . . 1 Operators 6 | . 2 . 1 . . . 1 . . . . . . . . 1 . 1 Skim 1 | . . . . . . . . . . . . . . . . . 1 . Fabricators 10 | . . . . . . . . 2 . 2 . . . . 1 1 4 . Prioritize 2 | . . . . . . . . . . 1 . . . . . . 1 . Recompile 8 | . . . . . . . . 2 . 1 . . . . 1 1 3 . Repair Stations . | . . . . . . . . . . . . . . . . . . . Recycling Units 2 | . 1 . . . . . . . . . . . . . 1 . . . Recyclers 1 | . 1 . . . . . . . . . . . . . . . . . Tunnel 1 | . . . . . . . . . . . . . . . 1 . . . Scanalyzers . | . . . . . . . . . . . . . . . . . . . Garrison Access . | . . . . . . . . . . . . . . . . . . . Data Cores Recovered 1 | . . . 1 . . . . . . . . . . . . . . . Used 1 | . . . 1 . . . . . . . . . . . . . . . Hacking Detections 50 | . 8 . 7 . . . 4 7 . 3 . . . . 10 5 4 2 Full Trace Events 10 | . 1 . 2 . . . 1 1 . 2 . . . . 1 2 . . Feedback Events . | . . . . . . . . . . . . . . . . . . . Feedback Blocked 2 | . . . . . . . . . . 2 . . . . . . . . Robot Schematics Acquired 4 | . . . . . . . . . . . . . 4 . . . . . Robots Built . | . . . . . . . . . . . . . . . . . . . Authchips . | . . . . . . . . . . . . . . . . . . . Time . | . . . . . . . . . . . . . . . . . . . Total Robot Build Rating . | . . . . . . . . . . . . . . . . . . . Part Schematics Acquired 24 | . . . 1 . . . 2 . . . . . 10 . 4 1 5 1 Parts Built 11 | . . . . . . . . 1 . 3 . . . . 1 4 2 . Authchips 7 | . . . . . . . . 1 . 1 . . . . 1 2 2 . Time 520 | . . . . . . . . 73 . 153 . . . . 95 135 64 . Total Part Build Rating 59 | . . . . . . . . 3 . 17 . . . . 5 23 11 . Parts Repaired 2 | . 1 . . . . . . . . . . . . . . . 1 . Time 137 | . 13 . . . . . . . . . . . . . . . 124 . Parts Recycled . | . . . . . . . . . . . . . . . . . . . Recycled Matter . | . . . . . . . . . . . . . . . . . . . Retrieved Matter . | . . . . . . . . . . . . . . . . . . . Retrieved Components . | . . . . . . . . . . . . . . . . . . . Parts Scanalyzed 8 | . . . 2 . . . . . . . . . . . 3 . 3 . Part Schematics Acquired 7 | . . . 1 . . . . . . . . . . . 3 . 3 . Parts Damaged . | . . . . . . . . . . . . . . . . . . . Bothacking | -11 -10 -10 -9 -9 -9 -8 -8 -7 -7 -7 -7 -7 -7 -6 -6 -5 -4 -4 ------------ Run | Yrd Mat Min Mat Min Exi Min Mat Fac Was Fac Low Low Dat Pro Fac Fac Fac Ext Used RIF Installer . | . . . . . . . . . . . . . . . . . . . Robots Hacked . | . . . . . . . . . . . . . . . . . . . Non-combat . | . . . . . . . . . . . . . . . . . . . Combat . | . . . . . . . . . . . . . . . . . . . Robot Hacks Applied . | . . . . . . . . . . . . . . . . . . . Relay Couplers Released . | . . . . . . . . . . . . . . . . . . . Fabnet Peak Effective % . | . . . . . . . . . . . . . . . . . . . Robots Rewired 3 | . . . . . . . . . . . . . . . . . . 3 Allies Hacked . | . . . . . . . . . . . . . . . . . . . Hacks Repelled . | . . . . . . . . . . . . . . . . . . . Allies | -11 -10 -10 -9 -9 -9 -8 -8 -7 -7 -7 -7 -7 -7 -6 -6 -5 -4 -4 -------- Run | Yrd Mat Min Mat Min Exi Min Mat Fac Was Fac Low Low Dat Pro Fac Fac Fac Ext Total Allies 10 | . . . 1 3 . . . . . . . . . . . . . 6 Largest Group 4 | . . . 1 3 3 . . . . . . . . . . . . 4 Highest-Rated Group 168 | . . . 10 74 74 . . . . . . . . . . . . 168 Highest-Rated Ally 46 | . . . 10 31 31 . . . . . . . . . . . . 46 Total Orders . | . . . . . . . . . . . . . . . . . . . Ally Attacks 20 | . . . . 1 . . . . . . . . . . . . . 19 Total Damage 550 | . . . . 20 . . . . . . . . . . . . . 530 Kills 3 | . . . . 1 . . . . . . . . . . . . . 2 Allies Corrupted . | . . . . . . . . . . . . . . . . . . . Allies Melted . | . . . . . . . . . . . . . . . . . . . Intel | -11 -10 -10 -9 -9 -9 -8 -8 -7 -7 -7 -7 -7 -7 -6 -6 -5 -4 -4 ------- Run | Yrd Mat Min Mat Min Exi Min Mat Fac Was Fac Low Low Dat Pro Fac Fac Fac Ext Robot Analysis Total 5 | . 1 . 4 . . . . . . . . . . . . . . . Derelict Logs Recovered 3 | . . 1 . 1 . . . . . . . 1 . . . . . . Drone Launches . | . . . . . . . . . . . . . . . . . . . Drone Recoveries . | . . . . . . . . . . . . . . . . . . . Exploration | -11 -10 -10 -9 -9 -9 -8 -8 -7 -7 -7 -7 -7 -7 -6 -6 -5 -4 -4 ------------- Run | Yrd Mat Min Mat Min Exi Min Mat Fac Was Fac Low Low Dat Pro Fac Fac Fac Ext Turns Passed 10877 | 91 1011 87 2068 900 326 208 236 921 101 358 646 309 49 374 1090 784 976 342 Spaces Moved 9580 | 61 663 52 1001 617 279 95 301 1377 186 393 432 218 99 276 1362 913 1119 136 Core 18 | 9 . . . . . . . . . . . . . . . . . 9 Treads 675 | 9 95 9 437 122 . . . . . . . . . . . . . 3 Legs 93 | . . . . . . . . . . . . . . . . . . 93 Wheels 2087 | 43 568 43 564 495 279 95 . . . . . . . . . . . . Hover . | . . . . . . . . . . . . . . . . . . . Flight 6707 | . . . . . . . 301 1377 186 393 432 218 99 276 1362 913 1119 31 Fastest Speed 40 | 50 80 100 95 110 115 115 50 50 50 50 50 50 50 50 50 50 40 40 Average Speed 73 | 97 106 110 149 137 115 115 50 50 50 50 50 50 50 50 50 50 50 107 Slowest Speed 240 | 160 160 160 240 240 115 115 50 50 50 50 50 50 50 50 50 50 120 190 Overloaded Moves . | . . . . . . . . . . . . . . . . . . . Propulsion Burnouts . | . . . . . . . . . . . . . . . . . . . Robots Hopped 16 | . . . . . . . 2 5 . 1 . . . . 3 3 2 . Cave-ins Triggered 1 | . . . . . . . . . . . . . . . . 1 . . Exploration Rate (%) 46 | 4 96 18 66 93 62 41 38 34 79 15 57 43 69 47 35 23 36 23 Regions Visited 18 Branch Regions 9 Pre-discovered Areas 5 | . . . . 1 1 . . . . . . 1 1 . 1 . . . Known Exits Taken 4 | . . . 1 . . . 1 . . . . . . . 1 . 1 . Unknown Exits Taken 12 | 1 1 1 . 1 1 1 . . . 1 1 1 1 1 . 1 . . Scrap Searched 7 | . . 1 . 2 . . . . . . 2 2 . . . . . . Spaces Dug 105 | . . . 4 . . . 14 20 . 3 4 2 . . 16 19 23 . Terrain Destroyed 117 | . 9 . 4 . . . 14 20 . 3 4 2 . . 16 19 26 . Melee 105 | . . . 4 . . . 14 20 . 3 4 2 . . 16 19 23 . Projectile 3 | . . . . . . . . . . . . . . . . . 3 . AOE 9 | . 9 . . . . . . . . . . . . . . . . . Terrain Rammed . | . . . . . . . . . . . . . . . . . . . Walls Destroyed . | . . . . . . . . . . . . . . . . . . . Machines Disabled . | . . . . . . . . . . . . . . . . . . . Actions | -11 -10 -10 -9 -9 -9 -8 -8 -7 -7 -7 -7 -7 -7 -6 -6 -5 -4 -4 --------- Run | Yrd Mat Min Mat Min Exi Min Mat Fac Was Fac Low Low Dat Pro Fac Fac Fac Ext Total 12613 | 78 829 64 1312 648 286 193 360 1561 193 550 854 414 98 512 1725 1200 1477 259 Wait 2388 | . 61 4 119 17 3 99 27 147 7 137 415 195 . 233 333 258 282 51 Move 9531 | 60 662 51 1000 616 278 94 296 1367 185 390 431 217 98 275 1355 906 1114 136 Hop 16 | . . . . . . . 2 5 . 1 . . . . 3 3 2 . Pick Up 55 | 5 8 . 15 . 1 . 2 5 1 3 . . . . 3 2 8 2 Fast Attach 43 | 6 2 . 9 . . . 2 4 . 3 . . . . 2 6 6 3 Attach 37 | 1 3 . 5 1 . . 4 1 . 3 1 . . 2 1 2 7 6 Detach 25 | . 2 . 3 . . . 4 2 . 4 1 . . 2 1 1 5 . Swap 24 | . 5 . 10 1 . . 1 1 . 2 2 . . . . . 1 1 Drop 48 | . 5 . 19 1 4 . 6 2 . 4 . . . . . . 7 . Fire 256 | 6 81 9 128 12 . . 2 . . . . . . . . . 18 . Melee 176 | . . . 4 . . . 14 27 . 3 4 2 . . 27 22 27 46 Ram . | . . . . . . . . . . . . . . . . . . . Kick . | . . . . . . . . . . . . . . . . . . . Crush . | . . . . . . . . . . . . . . . . . . . Escape Stasis . | . . . . . . . . . . . . . . . . . . . Rewire 14 | . . . . . . . . . . . . . . . . . . 14 Trap . | . . . . . . . . . . . . . . . . . . . Miscellaneous . | . . . . . . . . . . . . . . . . . . . Route ------- -11/Scrapyard -10/Materials (discovered 4 exits: *Mat x3 / [*Min]) -10/Mines -9/Materials (discovered 5 exits: *Mat / *Min x2 / [*Sto x2]) -9/Mines (discovered 3 exits: *Mat x2 / *Exi) -9/Exiles -8/Mines -8/Materials (discovered 3 exits: *Fac x3) -7/Factory -7/Waste -7/Factory -7/Lower Caves (discovered 2 exits: *Low / *Zio) -7/Lower Caves -7/Data Miner -6/Proximity Caves -6/Factory (discovered 6 exits: *Fac x4 / Low x2) -5/Factory (discovered 4 exits: *Fac x2 / Upp x2) -4/Factory (discovered 9 exits: *Res x4 / *Upp x2 / *Ext x2 / Arm) -4/Extension History --------- Turn | Location | Event 7 | -11/Scrapyard | Discovered new exit (range 15) 92 | -11/Scrapyard | Entered Materials 307 | -10/Materials | Build established: Mutant 410 | -10/Materials | Lost 3 parts (1p2w) 459 | -10/Materials | Discovered new exit (range 8) 605 | -10/Materials | Discovered new exit (range 11) 699 | -10/Materials | Discovered new exit (range 6) 729 | -10/Materials | Core integrity fell below 50% 752 | -10/Materials | Discovered new exit (range 7) 832 | -10/Materials | Repaired Lgt. Treads 1103 | -10/Materials | Entered Mines 1185 | -10/Mines | Discovered new exit (range 3) 1190 | -10/Mines | Entered Materials 1190 | -9/Materials | Evolved 2 slots: Utility x2 1191 | -9/Materials | Identified exit to Mines 1285 | -9/Materials | Discovered new exit (range 10) 1289 | -9/Materials | Discovered new exit (range 8) 1495 | -9/Materials | Destroyed 7 combat bots 2099 | -9/Materials | Build established: Scavenger-Mutant 2839 | -9/Materials | Discovered new exit (range 16) 2845 | -9/Materials | Build established: Mutant 2907 | -9/Materials | Central database locked down 3098 | -9/Materials | Core integrity fell below 50% 3258 | -9/Materials | Entered Mines 3310 | -9/Mines | Discovered new exit (range 8) 3585 | -9/Mines | Escorted by a lone wolf Derelict 3706 | -9/Mines | Learned location of Recycling (-9) 3960 | -9/Mines | Discovered new exit (range 11) 4143 | -9/Mines | Deemed a non-threat by the Exiles lab entrance 4145 | -9/Mines | Discovered new exit (range 5) 4158 | -9/Mines | Entered Exiles 4158 | -9/Exiles | Accompanied by 3 allies 4186 | -9/Exiles | Met 8R-AWN 4188 | -9/Exiles | Led the pair of lost Derelicts to a safe place 4248 | -9/Exiles | Met EX-HEX 4293 | -9/Exiles | Met EX-DEC 4299 | -9/Exiles | Learned location of Zion (-6) 4320 | -9/Exiles | Met EX-BIN 4336 | -9/Exiles | Aligned with FarCom system 4337 | -9/Exiles | Given EX-Vault access code 4366 | -9/Exiles | Opened EX-Vault 4374 | -9/Exiles | Found Flying Fortress v7 4397 | -9/Exiles | Warned to stay clear of 0b10 Research branches 4474 | -9/Exiles | Discovered new exit (range 11) 4484 | -9/Exiles | Left Exiles lab with Flying Fortress v7 4484 | -9/Exiles | Entered Mines 4687 | -8/Mines | Discovered new exit (range 5) 4692 | -8/Mines | Entered Materials 4692 | -8/Materials | Evolved 2 slots: Propulsion x2 4898 | -8/Materials | Identified exit to Factory 4928 | -8/Materials | Entered Factory 4928 | -7/Factory | Evolved 2 slots: Utility x2 5132 | -7/Factory | Fabricated Hacking Suite (x1) 5168 | -7/Factory | Build established: Hacker-Scout 5537 | -7/Factory | Discovered new exit (range 5) 5849 | -7/Factory | Sucked down chute 5849 | -7/Factory | Entered Waste 5852 | -7/Waste | Spotted C-40 Crusher 5859 | -7/Waste | Spotted C-40 Crusher 5862 | -7/Waste | Spotted C-40 Crusher 5888 | -7/Waste | Spotted C-40 Crusher 5894 | -7/Waste | Spotted C-40 Crusher 5904 | -7/Waste | Spotted C-40 Crusher 5946 | -7/Waste | Discovered new exit (range 10) 5950 | -7/Waste | Entered Factory 6023 | -7/Factory | Fabricated Lrn. Terrain Scanner (x2) 6064 | -7/Factory | Fabricated Hacking Suite (x1) 6278 | -7/Factory | Discovered new exit (range 22) 6308 | -7/Factory | Entered Lower Caves 6318 | -7/Lower Caves | Encountered a Warlord checkpoint 6354 | -7/Lower Caves | A Derelict revealed a hidden shortcut to a safe place 6359 | -7/Lower Caves | Identified exit to Zion 6626 | -7/Lower Caves | Discovered new exit (range 11) 6954 | -7/Lower Caves | Entered another Lower Caves area 7145 | -7/Lower Caves | Discovered new exit (range 20) 7263 | -7/Lower Caves | Entered Data Miner 7263 | -7/Data Miner | Discovered new exit (range 6) 7273 | -7/Data Miner | Met Data Miner 7284 | -7/Data Miner | Learned location of Section 7 (-2) 7284 | -7/Data Miner | Acquired the access code to Warlord's prototype stash 7290 | -7/Data Miner | Received God Mode back door access code from Data Miner 7312 | -7/Data Miner | Entered Proximity Caves 7685 | -6/Proximity Caves | Discovered new exit (range 3) 7686 | -6/Proximity Caves | Entered Factory 7686 | -6/Factory | Evolved 2 slots: Utility x2 8071 | -6/Factory | Identified exit to Factory 8215 | -6/Factory | Central database locked down 8451 | -6/Factory | Discovered new exit (range 21) 8553 | -6/Factory | Fabricated Imp. Hacking Suite (x1) 8686 | -6/Factory | Identified exit to Lower Caves 8776 | -6/Factory | Entered another Factory area 8776 | -5/Factory | Evolved 2 slots: Utility x2 8830 | -5/Factory | Fabricated Imp. Hacking Suite (x1) 8955 | -5/Factory | Crushed by falling debris 8982 | -5/Factory | Discovered new exit (range 18) 8986 | -5/Factory | Lost 3 parts (1u2w) 9016 | -5/Factory | Incoming investigation squad redirected 9087 | -5/Factory | Fabricated Adv. System Shield (x1) 9135 | -5/Factory | Fabricated Adv. System Restoration Module (x2) 9340 | -5/Factory | Identified exit to Upper Caves 9340 | -5/Factory | Central database locked down 9436 | -5/Factory | Discovered new exit (range 14) 9543 | -5/Factory | Build established: Wizard-Scout 9560 | -5/Factory | Entered another Factory area 9560 | -4/Factory | Evolved 2 slots: Utility x2 9759 | -4/Factory | Discovered new exit (range 12) 9759 | -4/Factory | Identified exit to Upper Caves 9759 | -4/Factory | Identified exit to Extension 9759 | -4/Factory | Identified exit to Armory 9790 | -4/Factory | Identified exit to Research 9974 | -4/Factory | Central database locked down 10232 | -4/Factory | Fabricated Lgt. Regenerative Plating (x1) 10260 | -4/Factory | Fabricated Nuclear Pulse Array (x1) 10321 | -4/Factory | Incoming investigation squad redirected 10399 | -4/Factory | Repaired Lrn. Terrain Scanner 10536 | -4/Factory | Entered Extension 10547 | -4/Extension | System corruption reached 10% 10548 | -4/Extension | Rescued a captive Derelict 10551 | -4/Extension | Rescued a captive Derelict 10581 | -4/Extension | Core integrity fell below 50% 10636 | -4/Extension | Lost 10 parts (2p2n5u1w) 10736 | -4/Extension | Rescued a captive Derelict 10794 | -4/Extension | Lost 4 allies 10849 | -4/Extension | Core integrity fell below 20% 10878 | -4/Extension | Destroyed by Y-64 Sentinel with KE Penetrator Last Messages --------------- 10815_ G-73 Enforcer destroyed. 10823_ Neutrino Core destroyed. 10831_ System corrupted: Matter fused (-9). 10839_ Imp. Remote Shield destroyed. 10842_ Lgt. Regenerative Plating destroyed. 10845_ Lrn. Terrain Scanner destroyed. 10846_ System corrupted: Energy discharge (-14). 10849_ G-67 Veteran destroyed. 10853_ Flexi-carbon Leg destroyed. 10856_ G-67 Veteran suffers critical hit (Impale). 10857_ Adv. System Shield destroyed. 10862_ G-67 Veteran destroyed. 10869_ Penetrated by Slug. 10870_ System corrupted: Component data lost. 10872_ Penetrated by Slug. 10872_ Adv. Terrain Scan Processor destroyed. 10872_ Y-64 Sentinel destroyed. 10876_ Slug penetrates Reinforced Barrier. 10878_ Sml. Storage Unit destroyed. 10878_ Penetrated by Slug. Map ----- +----------------------------------------------------+ | | | | | | | | | | | | | | | | | | | | | | | | | | | | | | | ?#######?#??##??##?##?###?##??##########??#?#?#??? | | ??####?#?####?#####??########### #?#??#????? | | ?#?#????###?########?# ##### ##??####??? | | ??#################### " ^^ T ? ? ???? | | ?#??##?## s T ==%! ^[=!"" [ ?? | | ?###?#??#s############ !== %[/%=%=% o ??? | | ###??##?#s##########?# %!!#####=**! = #?####?##?? | | ??####### w ######%####?# ##??#??#??? | | ####?#### ! #####*g##?######/?#?###?#???#?? | | ?#?#?##"" ==! """###Y##### ? ####??#?#?? | | ?#??#?#"T ==! T"###@##?## ? ?#???#????? | | ???##?#"" =!! """######?## ?######????? | | #?####### #########?## ? ####?####?? | | #?# s ##?##?#?#??# ????#??#?###?? | | ?## ###+##+##### ###?##????## ?? ##?######?? | | ### # ##?# ############ ??#??##?????? | | + ! ##?# + ???##?????? | | ####### #??############## ? ??###?#?#??? | | ??##### =#??#?#?###???##?#######???#?##?#???? | | ??#####] #?#?##?????#??##?#??#???#??####????? | | ??#???#########?##?####??#??##?#######?##?##?????? | | ?#??##?#?###?###?##?###??##??#####?#?#?####?#????? | | ????###???????#?#?#?###?#?##?#?#?#??##?#####?????? | | ??????##?###??#?#?#?#??##?#?########?#?#?????????? | | ????#???###?##??##?#?????#?##??##??##?###????????? | | ??????#???#??###?##?##?#######?##????##??????????? | | ???#????#######??????#????#???????#???##?????????? | | ?????##?#??####?###?#??#?###?##??#??#????????????? | | ???????#???##?#??#?#????#?##?#?#??##?#???????????? | | ??????????????#???##########?#?#####?????????????? | | ???????????????#?##?#?###?##?#??##???????????????? | | ?????#?????????????##????#???#???????????????????? | | ?????????????????????????????????????????????????? | | #?#??????????????????????????????????????????????? | | ?#???????????????????????????????????????????????? | +----------------------------------------------------+ Best States ------------- Heat Dissipation 43 Energy Generation 19 Energy Capacity 315 Matter Stores 300 Matter Capacity 300 Sight Range 16 Robot Scan Range 16 Terrain Scan Range 24 Terrain Scan Density 210 Corruption Block 8 Armor Coverage 150 Evasion (%) 62 Targeting Accuracy 12 Recoil Reduction 1 Salvage Targeting 2 Offensive Hacking 44 Defensive Hacking 24 Authchip Count 2 Item Schematics ----------------- Imp. Targeting Computer | -9/Materials | Scanalyzed Hacking Suite | -8/Materials | Hacked System Shield | -8/Materials | Hacked Combat Drone Bay | -7/Data Miner | Free Lgt. Regenerative Plating | -7/Data Miner | Free Adv. System Restoration Module | -7/Data Miner | Free Adv. Transmission Jammer | -7/Data Miner | Free Antimatter Cannon | -7/Data Miner | Free Imp. Arc Projector | -7/Data Miner | Free Enh. Gauss Cannon | -7/Data Miner | Free Cld. Aerolev Unit | -7/Data Miner | Free Cmb. Gravmag System | -7/Data Miner | Free Imp. Weapon Cycler | -7/Data Miner | Free Adv. Terrain Scan Processor | -6/Factory | Scanalyzed Lrn. Terrain Scanner | -6/Factory | Scanalyzed Imp. Sensor Array | -6/Factory | Scanalyzed Imp. Hacking Suite | -6/Factory | Hacked Adv. System Shield | -5/Factory | Hacked Nuclear Pulse Array | -4/Factory | Hacked Lrn. Sensor Array | -4/Factory | Hacked Railgun | -4/Factory | Scanalyzed Adv. Sensor Array | -4/Factory | Scanalyzed Sml. Storage Unit | -4/Factory | Scanalyzed Enh. Force Lance | -4/Extension | Hacked Robot Schematics ------------------ G-50 Soldier | -7/Data Miner | Free S-27 Virus | -7/Data Miner | Free R-10 Processor | -7/Data Miner | Free W-25 Informer | -7/Data Miner | Free Fabricated ------------ Hacking Suite | x1 | -7/Factory | Authchip Lrn. Terrain Scanner | x2 | -7/Factory | Preloaded Hacking Suite | x1 | -7/Factory | Authchip Imp. Hacking Suite | x1 | -6/Factory | Authchip Imp. Hacking Suite | x1 | -5/Factory | Authchip Adv. System Shield | x1 | -5/Factory | Authchip Adv. System Restoration Module | x2 | -5/Factory Lgt. Regenerative Plating | x1 | -4/Factory | Authchip Nuclear Pulse Array | x1 | -4/Factory | Authchip Alien Tech Used ----------------- None Achievements -------------- None Challenges ------------ None Game ------ Seed ConcussiveMicrowarpMaul Manual? 0 Play Time 02:06:15 Cumulative 183.1 hours Start 2024.11.14 @ 17:58:39 End 2024.11.14 @ 20:04:23 Sessions 1 Manual Loads 0 Difficulty Rogue Special Mode None Game No. 147 Rogue 147 Adventurer 0 Explorer 0 Win Type - Total 4 Types 2/0/1/1/0/0/0/0/0 Lore% 62 Gallery% 66 Achievement% 52 Wizard Run 0 Options --------- Layout 2 ASCII 0 Keyboard 0 Movement Numpad Keybinds 0 Fullscreen 1 Font 16/Terminus Map View 55x47 Zoom Use 0% Tactical HUD 1 Map Filters NONE Filters NONE Steam 1 RUN: 25af20d5-3943-433b-bbb0-52439a33d2c2